fUSD/lending_fUSD_20250616
["ID","MTS","AMOUNT","RATE_DAILY","PERIOD"]
[366059662,1750041043853,-714.51,0.00016438,2]
[366059663,1750041043862,-490.0,0.00016438,2]
[366059664,1750041043871,-496.37695765,0.00016438,2]
[366059665,1750041043881,-494.31956412,0.00016438,2]
[366059666,1750041043890,-500.0,0.00016438,2]
[366059667,1750041043900,-500.0,0.00016438,2]
[366059668,1750041043909,-500.0,0.00016438,2]
[366059669,1750041043919,-500.0,0.00016438,2]
[366059670,1750041043929,-626.21789322,0.00016438,2]
[366059671,1750041043938,-500.0,0.00016438,2]
[366059672,1750041043947,-500.0,0.00016438,2]
[366059673,1750041043957,-490.0,0.00016438,2]
[366059674,1750041043967,-492.81299194,0.00016438,2]
[366059675,1750041043977,-490.0,0.00016438,2]
[366059676,1750041043987,-490.0,0.00016438,2]
[366059677,1750041043996,-490.0,0.00016438,2]
[366059678,1750041044005,-575.58,0.00016438,2]
[366059679,1750041044014,-499.4664432,0.00016438,2]
[366059680,1750041044023,-490.0,0.00016438,2]
[366059681,1750041044032,-490.0,0.00016438,2]
[366059682,1750041044041,-729.86,0.00016438,2]
[366059683,1750041044050,-546.28,0.00016438,2]
[366059684,1750041044059,-490.0,0.00016438,2]
[366059685,1750041044068,-638.35252526,0.00016438,2]
[366059686,1750041044077,-490.0,0.00016438,2]
[366059687,1750041044086,-858.67,0.00016438,2]
[366059688,1750041044095,-490.0,0.00016438,2]
[366059689,1750041044105,-490.0,0.00016438,2]
[366059690,1750041044114,-1242.03,0.00016438,2]
[366059691,1750041044124,-494.76089771,0.00016438,2]
[366059692,1750041044134,-376.76920502,0.00016438,2]
[366059693,1750041044144,-737.15,0.00016438,2]
[366059694,1750041044153,-493.33319638,0.00016438,2]
[366059695,1750041044163,-494.70021302,0.00016438,2]
[366059696,1750041044172,-1392.35,0.00016438,2]
[366059697,1750041044181,-490.0,0.00016438,2]
[366059698,1750041044190,-490.0,0.00016438,2]
[366059699,1750041044199,-490.0,0.00016438,2]
[366059700,1750041044209,-492.56146032,0.00016438,2]
[366059701,1750041044218,-505.38804211,0.00016438,2]
[366059702,1750041044227,-490.81088513,0.00016438,2]
[366059703,1750041044240,-490.0,0.00016438,2]
[366059704,1750041044249,-490.0,0.00016438,2]
[366059705,1750041044259,-498.28930664,0.00016438,2]
[366059706,1750041044268,-490.0,0.00016438,2]
[366059707,1750041044279,-490.0,0.00016438,2]
[366059708,1750041044288,-500.0,0.00016438,2]
[366059709,1750041044298,-504.32197462,0.00016438,2]
[366059710,1750041044307,-1274.41,0.00016438,2]
[366059711,1750041044319,-494.50744166,0.00016438,2]
[366059712,1750041044329,-490.0,0.00016438,2]
[366059713,1750041044338,-503.7446977,0.00016438,2]
[366059714,1750041044348,-490.0,0.00016438,2]
[366059715,1750041044357,-1607.54,0.00016438,2]
[366059716,1750041044367,-499.03907359,0.00016438,2]
[366059717,1750041044377,-490.0,0.00016438,2]
[366059718,1750041044387,-490.0,0.00016438,2]
[366059719,1750041044396,-430.0,0.00016438,2]
[366059720,1750041044406,-573.67,0.00016438,2]
[366059721,1750041044415,-1403.13,0.00016438,2]
[366059722,1750041044423,-652.94,0.00016438,2]
[366059723,1750041044432,-490.0,0.00016438,2]
[366059724,1750041044441,-490.0,0.00016438,2]
[366059725,1750041044450,-490.0,0.00016438,2]
[366059726,1750041044459,-1450.78,0.00016438,2]
[366059727,1750041044469,-698.18,0.00016438,2]
[366059728,1750041044478,-490.0,0.00016438,2]
[366059729,1750041044488,-490.0,0.00016438,2]
[366059730,1750041044498,-490.0,0.00016438,2]
[366059731,1750041044507,-1644.39,0.00016438,2]
[366059732,1750041044516,-498.39157963,0.00016438,2]
[366059733,1750041044525,-492.18734899,0.00016438,2]
[366059734,1750041044534,-1927.17,0.00016438,2]
[366059735,1750041044544,-490.84905135,0.00016438,2]
[366059736,1750041044553,-494.06517075,0.00016438,2]
[366059737,1750041044562,-490.0,0.00016438,2]
[366059738,1750041044571,-1677.18,0.00016438,2]
[366059739,1750041044580,-496.05737498,0.00016438,2]
[366059740,1750041044589,-590.49,0.00016438,2]
[366059741,1750041044600,-897.24,0.00016438,2]
[366059742,1750041044609,-1088.99,0.00016438,2]
[366059743,1750041044618,-490.0,0.00016438,2]
[366059744,1750041044628,-490.0,0.00016438,2]
[366059745,1750041044637,-881.12,0.00016438,2]
[366059746,1750041044646,-623.50799615,0.00016438,2]
[366059747,1750041044655,-498.84814647,0.00016438,2]
[366059748,1750041044664,-490.0,0.00016438,2]
[366059749,1750041044673,-490.0,0.00016438,2]
[366059750,1750041044683,-1470.47,0.00016438,2]
[366059751,1750041044692,-490.0,0.00016438,2]
[366059752,1750041044701,-490.0,0.00016438,2]
[366059753,1750041044710,-1764.57,0.00016438,2]
[366059754,1750041044719,-493.52618405,0.00016438,2]
[366059755,1750041044728,-592.77,0.00016438,2]
[366059756,1750041044737,-495.58396719,0.00016438,2]
[366059757,1750041044746,-495.3466602,0.00016438,2]
[366059758,1750041044755,-490.0,0.00016438,2]
[366059759,1750041044764,-279.84293113,0.00016438,2]
[366059760,1750041044774,-490.0,0.00016438,2]
[366059761,1750041044783,-490.0,0.00016438,2]
[366059762,1750041044792,-318.92013167,0.00016438,2]
[366059763,1750041044801,-494.22247669,0.00016438,2]
[366059764,1750041044811,-490.0,0.00016438,2]
[366059765,1750041044820,-490.0,0.00016438,2]
[366059766,1750041044829,-663.7,0.00016438,2]
[366059767,1750041044838,-490.0,0.00016438,2]
[366059768,1750041044847,-490.0,0.00016438,2]
[366059769,1750041044856,-493.20890796,0.00016438,2]
[366059770,1750041044867,-490.0,0.00016438,2]
[366059771,1750041044877,-495.21027509,0.00016438,2]
[366059772,1750041044886,-490.0,0.00016438,2]
[366059773,1750041044896,-490.0,0.00016438,2]
[366059774,1750041044905,-909.49,0.00016438,2]
[366059775,1750041044914,-1388.79,0.00016438,2]
[366059776,1750041044923,-559.26439644,0.00016438,2]
[366059777,1750041044932,-450.0,0.00016438,2]
[366059778,1750041044941,-1292.63,0.00016438,2]
[366059779,1750041044951,-490.0,0.00016438,2]
[366059780,1750041044959,-724.12,0.00016438,2]
[366059781,1750041044968,-490.0,0.00016438,2]
[366059782,1750041044977,-491.47103858,0.00016438,2]
[366059783,1750041044987,-490.91705611,0.00016438,2]
[366059784,1750041044996,-518.00568432,0.00016438,2]
[366059785,1750041045005,-833.64,0.00016438,2]
[366059786,1750041045014,-491.30125803,0.00016438,2]
[366059787,1750041045023,-903.31,0.00016438,2]
[366059788,1750041045032,-490.0,0.00016438,2]
[366059789,1750041045042,-490.0,0.00016438,2]
[366059790,1750041045051,-490.0,0.00016438,2]
[366059791,1750041045189,-490.0,0.00016438,2]
[366059792,1750041045276,-1562.89,0.00016438,2]
[366059793,1750041045286,-4195.590139,0.00016438,2]
[366059794,1750041045296,-1507.45,0.00016438,2]
[366059795,1750041045306,-583.45,0.00016438,2]
[366059796,1750041045316,-160.122082,0.00016438,2]
[366059797,1750041045326,-170.12385207,0.00016438,2]
[366059798,1750041045335,-490.0,0.00016438,2]
[366059799,1750041045345,-490.0,0.00016438,2]
[366059800,1750041045355,-1358.89,0.00016438,2]
[366059801,1750041045365,-490.0,0.00016438,2]
[366059802,1750041045374,-1102.31,0.00016438,2]
[366059803,1750041045384,-159.99973,0.00016438,2]
[366059804,1750041045394,-821.98,0.00016438,2]
[366059805,1750041045403,-494.35590155,0.00016438,2]
[366059806,1750041045413,-490.0,0.00016438,2]
[366059807,1750041045422,-490.0,0.00016438,2]
[366059808,1750041045431,-1457.66,0.00016438,2]
[366059809,1750041045441,-499.37213177,0.00016438,2]
[366059810,1750041045450,-876.47,0.00016438,2]
[366059811,1750041045459,-482.85830447,0.00016438,2]
[366059812,1750041045468,-831.14,0.00016438,2]
[366059813,1750041045478,-490.0,0.00016438,2]
[366059814,1750041045488,-492.93260265,0.00016438,2]
[366059815,1750041045497,-1202.87,0.00016438,2]
[366059816,1750041045506,-492.06716092,0.00016438,2]
[366059817,1750041045516,-494.55406496,0.00016438,2]
[366059818,1750041045526,-490.0,0.00016438,2]
[366059819,1750041045536,-495.5283938,0.00016438,2]
[366059820,1750041045546,-490.0,0.00016438,2]
[366059821,1750041045555,-184.3856149,0.00016438,2]
[366059822,1750041045564,-490.0,0.00016438,2]
[366059823,1750041045573,-490.0,0.00016438,2]
[366059824,1750041045583,-490.0,0.00016438,2]
[366059825,1750041045592,-761.34,0.00016438,2]
[366059826,1750041045602,-494.55262997,0.00016438,2]
[366059827,1750041045611,-726.62,0.00016438,2]
[366059828,1750041045621,-490.0,0.00016438,2]
[366059829,1750041045632,-602.98,0.00016438,2]
[366059830,1750041045641,-1572.58,0.00016438,2]
[366059831,1750041045651,-490.0,0.00016438,2]
[366059832,1750041045660,-489.56399469,0.00016438,2]
[366059833,1750041045670,-707.17,0.00016438,2]
[366059834,1750041045679,-701.8,0.00016438,2]
[366059835,1750041045690,-490.0,0.00016438,2]
[366059836,1750041045702,-753.76,0.00016438,2]
[366059837,1750041045711,-3096.528583,0.00016438,2]
[366059839,1750041045720,-490.0,0.00016438,2]
[366059840,1750041045730,-490.0,0.00016438,2]
[366059841,1750041045739,-490.0,0.00016438,2]
[366059842,1750041045749,-160.93308419,0.00016438,2]
[366059843,1750041045758,-623.63,0.00016438,2]
[366059844,1750041045767,-1406.52,0.00016438,2]
[366059845,1750041045777,-490.0,0.00016438,2]
[366059846,1750041045786,-642.54,0.00016438,2]
[366059847,1750041045796,-490.0,0.00016438,2]
[366059848,1750041045805,-465.82726332,0.00016438,2]
[366059849,1750041045814,-1768.24,0.00016438,2]
[366059850,1750041045823,-490.0,0.00016438,2]
[366059851,1750041045833,-490.0,0.00016438,2]
[366059852,1750041045842,-490.0,0.00016438,2]
[366059853,1750041045852,-324.33292876,0.00016438,2]
[366059854,1750041045861,-495.60981121,0.00016438,2]
[366059855,1750041045870,-449.49,0.00016438,2]
[366059856,1750041045880,-490.0,0.00016438,2]
[366059857,1750041045890,-495.42036203,0.00016438,2]
[366059858,1750041045900,-493.80287435,0.00016438,2]
[366059859,1750041045910,-490.0,0.00016438,2]
[366059860,1750041045920,-490.0,0.00016438,2]
[366059861,1750041045930,-1429.43,0.00016438,2]
[366059862,1750041045939,-490.73451155,0.00016438,2]
[366059863,1750041045948,-490.0,0.00016438,2]
[366059864,1750041045958,-490.0,0.00016438,2]
[366059865,1750041045967,-767.74,0.00016438,2]
[366059866,1750041045977,-462.24388347,0.00016438,2]
[366059867,1750041045986,-492.33115449,0.00016438,2]
[366059868,1750041045995,-490.0,0.00016438,2]
[366059869,1750041046005,-495.1496452,0.00016438,2]
[366059870,1750041046014,-490.0,0.00016438,2]
[366059871,1750041046024,-490.0,0.00016438,2]
[366059872,1750041046033,-768.8,0.00016438,2]
[366059873,1750041046045,-821.67,0.00016438,2]
[366059874,1750041046054,-495.73973931,0.00016438,2]
[366059875,1750041046063,-496.59067642,0.00016438,2]
[366059876,1750041046073,-490.0,0.00016438,2]
[366059877,1750041046082,-490.0,0.00016438,2]
[366059878,1750041046091,-490.0,0.00016438,2]
[366059879,1750041046101,-926.29,0.00016438,2]
[366059880,1750041046110,-1079.68,0.00016438,2]
[366059881,1750041046120,-492.98973163,0.00016438,2]
[366059882,1750041046130,-490.0,0.00016438,2]
[366059883,1750041046139,-1560.25,0.00016438,2]
[366059884,1750041046148,-564.49,0.00016438,2]
[366059885,1750041046158,-490.0,0.00016438,2]
[366059886,1750041046168,-490.0,0.00016438,2]
[366059887,1750041046178,-490.0,0.00016438,2]
[366059888,1750041046187,-490.0,0.00016438,2]
[366059889,1750041046197,-490.0,0.00016438,2]
[366059890,1750041046207,-151.0,0.00016438,2]
[366059891,1750041046216,-1040.23,0.00016438,2]
[366059892,1750041046225,-588.46,0.00016438,2]
[366059893,1750041046238,-795.74,0.00016438,2]
[366059894,1750041046247,-1096.48,0.00016438,2]
[366059895,1750041046257,-789.62,0.00016438,2]
[366059896,1750041046266,-490.44696029,0.00016438,2]
[366059897,1750041046278,-729.4,0.00016438,2]
[366059898,1750041046287,-490.0,0.00016438,2]
[366059899,1750041046297,-659.3,0.00016438,2]
[366059900,1750041046307,-490.58954743,0.00016438,2]
[366059901,1750041046318,-490.0,0.00016438,2]
[366059902,1750041046328,-773.73,0.00016438,2]
[366059904,1750041046338,-1582.43,0.00016438,2]
[366059906,1750041046347,-493.67921577,0.00016438,2]
[366059907,1750041046357,-489.26984292,0.00016438,2]
[366059908,1750041046367,-2030.71,0.00016438,2]
[366059909,1750041046377,-496.98902866,0.00016438,2]
[366059910,1750041046386,-490.0,0.00016438,2]
[366059911,1750041046396,-544.91,0.00016438,2]
[366059912,1750041046406,-1293.72,0.00016438,2]
[366059913,1750041046415,-490.0,0.00016438,2]
[366059914,1750041046425,-490.41283978,0.00016438,2]
[366059915,1750041046434,-490.0,0.00016438,2]
[366059916,1750041046443,-209.846174,0.00016438,2]
[366059917,1750041046453,-867.16,0.00016438,2]
[366059918,1750041046462,-493.19270253,0.00016438,2]
[366059919,1750041046471,-491.5865919,0.00016438,2]
[366059920,1750041046481,-494.40490156,0.00016438,2]
[366059921,1750041046490,-490.0,0.00016438,2]
[366059922,1750041046500,-491.18957131,0.00016438,2]
[366059923,1750041046510,-1774.18,0.00016438,2]
[366059924,1750041046519,-500.0,0.00016438,2]
[366059925,1750041046529,-507.69793493,0.00016438,2]
[366059926,1750041046539,-460.65241337,0.00016438,2]
[366059927,1750041046549,-490.0,0.00016438,2]
[366059928,1750041046559,-490.0,0.00016438,2]
[366059929,1750041046569,-490.0,0.00016438,2]
[366059930,1750041046578,-495.07824544,0.00016438,2]
[366059931,1750041046588,-583.67986013,0.00016438,2]
[366059932,1750041046597,-493.27370035,0.00016438,2]
[366059933,1750041046607,-616.02,0.00016438,2]
[366059934,1750041046617,-491.45293837,0.00016438,2]
[366059935,1750041046627,-2230.73,0.00016438,2]
[366059936,1750041046637,-585.04,0.00016438,2]
[366059937,1750041046647,-589.34,0.00016438,2]
[366059938,1750041046657,-614.08852907,0.00016438,2]
[366059939,1750041046667,-2091.03,0.00016438,2]
[366059940,1750041046677,-490.0,0.00016438,2]
[366059941,1750041046686,-1852.75,0.00016438,2]
[366059942,1750041046696,-490.0,0.00016438,2]
[366059943,1750041046705,-498.06047824,0.00016438,2]
[366059944,1750041046715,-490.0,0.00016438,2]
[366059945,1750041046725,-490.0,0.00016438,2]
[366059946,1750041046735,-490.0,0.00016438,2]
[366059947,1750041046744,-490.0,0.00016438,2]
[366059948,1750041046754,-500.0,0.00016438,2]
[366059949,1750041046764,-505.4425894,0.00016438,2]
[366059950,1750041046774,-499.81602127,0.00016438,2]
[366059951,1750041046784,-2162.41,0.00016438,2]
[366059952,1750041046794,-490.0,0.00016438,2]
[366059953,1750041046803,-1205.29,0.00016438,2]
[366059954,1750041046814,-485.07535759,0.00016438,2]
[366059955,1750041046824,-226.22894884,0.00016438,2]
[366059956,1750041046834,-490.0,0.00016438,2]
[366059957,1750041046843,-491.400113,0.00016438,2]
[366059958,1750041046853,-2292.72,0.00016438,2]
[366059959,1750041046863,-493.56283741,0.00016438,2]
[366059960,1750041046872,-490.0,0.00016438,2]
[366059961,1750041046883,-490.0,0.00016438,2]
[366059962,1750041046893,-798.68,0.00016438,2]
[366059963,1750041046902,-497.82487418,0.00016438,2]
[366059964,1750041046911,-490.0,0.00016438,2]
[366059965,1750041046921,-597.69,0.00016438,2]
[366059966,1750041046931,-985.97,0.00016438,2]
[366059967,1750041046940,-490.75384804,0.00016438,2]
[366059968,1750041046950,-490.0,0.00016438,2]
[366059969,1750041046961,-570.02,0.00016438,2]
[366059970,1750041046972,-490.0,0.00016438,2]
[366059971,1750041046982,-493.58944597,0.00016438,2]
[366059972,1750041046992,-490.0,0.00016438,2]
[366059973,1750041047003,-490.0,0.00016438,2]
[366059974,1750041047013,-490.0,0.00016438,2]
[366059975,1750041047024,-490.0,0.00016438,2]
[366059976,1750041047033,-646.57,0.00016438,2]
[366059977,1750041047045,-490.0,0.00016438,2]
[366059978,1750041047054,-490.0,0.00016438,2]
[366059979,1750041047064,-1282.13,0.00016438,2]
[366059980,1750041047074,-490.44183243,0.00016438,2]
[366059981,1750041047084,-490.0,0.00016438,2]
[366059982,1750041047094,-2705.92,0.00016438,2]
[366059983,1750041047103,-490.0,0.00016438,2]
[366059984,1750041047113,-490.0,0.00016438,2]
[366059985,1750041047123,-490.0,0.00016438,2]
[366059986,1750041047135,-490.0,0.00016438,2]
[366059987,1750041047144,-490.0,0.00016438,2]
[366059988,1750041047154,-490.0,0.00016438,2]
[366059989,1750041047164,-490.0,0.00016438,2]
[366059990,1750041047174,-549.68,0.00016438,2]
[366059991,1750041047183,-490.0,0.00016438,2]
[366059992,1750041047193,-2193.81,0.00016438,2]
[366059993,1750041047203,-151.656887,0.00016438,2]
[366059994,1750041047214,-503.16139953,0.00016438,2]
[366059995,1750041047223,-492.75518605,0.00016438,2]
[366059996,1750041047236,-1300.58,0.00016438,2]
[366059997,1750041047246,-490.0,0.00016438,2]
[366059998,1750041047256,-490.0,0.00016438,2]
[366059999,1750041047265,-212.54894843,0.00016438,2]
[366060000,1750041047275,-1476.99,0.00016438,2]
[366060001,1750041047285,-578.68,0.00016438,2]
[366060002,1750041047295,-601.32,0.00016438,2]
[366060003,1750041047305,-490.0,0.00016438,2]
[366060004,1750041047316,-611.69,0.00016438,2]
[366060005,1750041047326,-1410.31,0.00016438,2]
[366060006,1750041047336,-543.68,0.00016438,2]
[366060007,1750041047347,-500.0,0.00016438,2]
[366060008,1750041047357,-500.0,0.00016438,2]
[366060009,1750041047367,-547.65834527,0.00016438,2]
[366060010,1750041047378,-492.34813118,0.00016438,2]
[366060011,1750041047388,-490.0,0.00016438,2]
[366060012,1750041047399,-988.08,0.00016438,2]
[366060013,1750041047409,-491.72315563,0.00016438,2]
[366060014,1750041047418,-499.7696759,0.00016438,2]
[366060015,1750041047428,-1908.24,0.00016438,2]
[366060016,1750041047438,-507.99,0.00016438,2]
[366060017,1750041047448,-493.07703891,0.00016438,2]
[366060018,1750041047457,-3032.62,0.00016438,2]
[366060019,1750041047467,-497.77917427,0.00016438,2]
[366060020,1750041047477,-494.13090215,0.00016438,2]
[366060021,1750041047486,-490.0,0.00016438,2]
[366060022,1750041047496,-607.53797371,0.00016438,2]
[366060023,1750041047507,-567.04,0.00016438,2]
[366060024,1750041047517,-1446.29,0.00016438,2]
[366060025,1750041047527,-491.48571085,0.00016438,2]
[366060026,1750041047997,-490.0,0.00016438,2]
[366060027,1750041048009,-646.1,0.00016438,2]
[366060028,1750041048021,-490.0,0.00016438,2]
[366060029,1750041048030,-1210.94,0.00016438,2]
[366060030,1750041048040,-1600.96,0.00016438,2]
[366060031,1750041048050,-490.0,0.00016438,2]
[366060032,1750041048060,-527.93,0.00016438,2]
[366060033,1750041048070,-2685.2,0.00016438,2]
[366060034,1750041048080,-1864.91,0.00016438,2]
[366060035,1750041048090,-490.0,0.00016438,2]
[366060036,1750041048100,-490.0,0.00016438,2]
[366060037,1750041048110,-491.81798748,0.00016438,2]
[366060038,1750041048120,-500.0,0.00016438,2]
[366060039,1750041048130,-500.0,0.00016438,2]
[366060040,1750041048140,-490.0,0.00016438,2]
[366060041,1750041048150,-2479.85,0.00016438,2]
[366060042,1750041048161,-495.05416711,0.00016438,2]
[366060043,1750041048172,-490.0,0.00016438,2]
[366060044,1750041048182,-490.0,0.00016438,2]
[366060045,1750041048192,-490.0,0.00016438,2]
[366060046,1750041048202,-481.215959,0.00016438,2]
[366060047,1750041048214,-490.0,0.00016438,2]
[366060048,1750041048224,-490.0,0.00016438,2]
[366060049,1750041048236,-490.0,0.00016438,2]
[366060050,1750041048246,-491.1044232,0.00016438,2]
[366060051,1750041048257,-490.0,0.00016438,2]
[366060052,1750041048270,-797.74,0.00016438,2]
[366060053,1750041048281,-6588.49,0.00016438,2]
[366060054,1750041048291,-328.641868,0.00016438,2]
[366060055,1750041048301,-633.8,0.00016438,2]
[366060056,1750041048312,-497.62096239,0.00016438,2]
[366060057,1750041048323,-481.215959,0.00016438,2]
[366060058,1750041048333,-490.0,0.00016438,2]
[366060059,1750041048344,-492.31713965,0.00016438,2]
[366060060,1750041048354,-497.04227004,0.00016438,2]
[366060061,1750041048364,-1674.6,0.00016438,2]
[366060062,1750041048375,-632.87,0.00016438,2]
[366060063,1750041048386,-328.641868,0.00016438,2]
[366060064,1750041048398,-1260.85,0.00016438,2]
[366060065,1750041048408,-218.48538572,0.00016438,2]
[366060066,1750041048418,-571.7,0.00016438,2]
[366060067,1750041048428,-547.44287011,0.00016438,2]
[366060068,1750041048438,-610.35,0.00016438,2]
[366060069,1750041048448,-490.0,0.00016438,2]
[366060070,1750041048458,-490.0,0.00016438,2]
[366060071,1750041048469,-151.0,0.00016438,2]
[366060072,1750041048480,-514.69,0.00016438,2]
[366060073,1750041048490,-18876.97,0.00016438,2]
[366060074,1750041048499,-1427.1,0.00016438,2]
[366060075,1750041048509,-492.34736973,0.00016438,2]
[366060076,1750041048521,-464.00078561,0.00016438,2]
[366060077,1750041048530,-534.90476328,0.00016438,2]
[366060078,1750041048540,-490.0,0.00016438,2]
[366060079,1750041048549,-491.33281858,0.00016438,2]
[366060080,1750041048561,-5189.29,0.00016438,2]
[366060081,1750041048571,-794.98,0.00016438,2]
[366060082,1750041048580,-490.0,0.00016438,2]
[366060083,1750041048591,-151.0,0.00016438,2]
[366060084,1750041048601,-609.0,0.00016438,2]
[366060085,1750041048611,-1664.02,0.00016438,2]
[366060086,1750041048620,-490.0,0.00016438,2]
[366060087,1750041048632,-490.0,0.00016438,2]
[366060088,1750041048642,-490.0,0.00016438,2]
[366060089,1750041048653,-490.43602751,0.00016438,2]
[366060090,1750041048663,-490.0,0.00016438,2]
[366060091,1750041048672,-490.0,0.00016438,2]
[366060092,1750041048682,-300.15643806,0.00016438,2]
[366060093,1750041048692,-917.42,0.00016438,2]
[366060094,1750041048702,-496.86,0.00016438,2]
[366060095,1750041048712,-490.0,0.00016438,2]
[366060096,1750041048722,-490.0,0.00016438,2]
[366060097,1750041048732,-492.36981799,0.00016438,2]
[366060098,1750041048742,-1269.33,0.00016438,2]
[366060099,1750041048752,-587.35,0.00016438,2]
[366060100,1750041048762,-489.45315941,0.00016438,2]
[366060101,1750041048772,-490.0,0.00016438,2]
[366060102,1750041048782,-493.43480682,0.00016438,2]
[366060103,1750041048792,-473.14624847,0.00016438,2]
[366060104,1750041048802,-1773.27,0.00016438,2]
[366060105,1750041048812,-497.03590707,0.00016438,2]
[366060106,1750041048823,-748.56,0.00016438,2]
[366060107,1750041048833,-490.0,0.00016438,2]
[366060108,1750041048842,-490.0,0.00016438,2]
[366060109,1750041048851,-490.0,0.00016438,2]
[366060110,1750041048862,-1736.27,0.00016438,2]
[366060111,1750041048872,-490.0,0.00016438,2]
[366060112,1750041048883,-548.34,0.00016438,2]
[366060113,1750041048893,-490.0,0.00016438,2]
[366060114,1750041048902,-837.14,0.00016438,2]
[366060115,1750041048913,-490.0,0.00016438,2]
[366060116,1750041048923,-2031.3,0.00016438,2]
[366060117,1750041048933,-490.0,0.00016438,2]
[366060118,1750041048943,-492.22922425,0.00016438,2]
[366060119,1750041048953,-1099.08,0.00016438,2]
[366060120,1750041048963,-490.0,0.00016438,2]
[366060121,1750041048974,-490.0,0.00016438,2]
[366060122,1750041048984,-490.7298205,0.00016438,2]
[366060123,1750041048994,-2770.91,0.00016438,2]
[366060124,1750041049004,-151.0,0.00016438,2]
[366060125,1750041049014,-448.78937037,0.00016438,2]
[366060126,1750041049024,-671.42,0.00016438,2]
[366060127,1750041049034,-2087.33,0.00016438,2]
[366060128,1750041049043,-1381.05,0.00016438,2]
[366060129,1750041049053,-591.25,0.00016438,2]
[366060130,1750041049062,-860.07,0.00016438,2]
[366060131,1750041049072,-155.84472599,0.00016438,2]
[366060132,1750041049082,-1067.79,0.00016438,2]
[366060133,1750041049093,-490.0,0.00016438,2]
[366060134,1750041049102,-490.0,0.00016438,2]
[366060135,1750041049112,-491.93552755,0.00016438,2]
[366060136,1750041049121,-2452.5,0.00016438,2]
[366060137,1750041049131,-7492.78,0.00016438,2]
[366060138,1750041049141,-547.06975482,0.00016438,2]
[366060139,1750041049151,-490.0,0.00016438,2]
[366060140,1750041049161,-1148.99,0.00016438,2]
[366060141,1750041049171,-517.04,0.00016438,2]
[366060142,1750041049181,-778.73,0.00016438,2]
[366060143,1750041049190,-492.12463328,0.00016438,2]
[366060144,1750041049200,-493.7286056,0.00016438,2]
[366060145,1750041049210,-630.62,0.00016438,2]
[366060146,1750041049220,-740.24,0.00016438,2]
[366060147,1750041049232,-491.05454605,0.00016438,2]
[366060148,1750041049249,-1589.99,0.00016438,2]
[366060149,1750041049260,-2078.02,0.00016438,2]
[366060150,1750041049270,-490.0,0.00016438,2]
[366060151,1750041049281,-3376.08,0.00016438,2]
[366060152,1750041049293,-880.59,0.00016438,2]
[366060153,1750041049303,-490.0,0.00016438,2]
[366060154,1750041049313,-490.0,0.00016438,2]
[366060155,1750041049325,-490.0,0.00016438,2]
[366060156,1750041049336,-490.0,0.00016438,2]
[366060157,1750041049345,-492.40480381,0.00016438,2]
[366060158,1750041049356,-318.42848246,0.00016438,2]
[366060159,1750041049366,-1003.8,0.00016438,2]
[366060160,1750041049376,-670.15,0.00016438,2]
[366060161,1750041049385,-1190.19,0.00016438,2]
[366060162,1750041049395,-490.0,0.00016438,2]
[366060163,1750041049405,-2003.91,0.00016438,2]
[366060164,1750041049415,-1563.94,0.00016438,2]